Cogmind - Beta 11.1 *** ADVENTURER MODE // 2022.05.21 @ 23:49:29 Player: lobstro Result: Destroyed by D-53 Grenadier with Mini Grenade Launcher Performance ------------- Evolutions (0) 0 Regions Visited (4) 800 Robots Destroyed (28) 140 Value Destroyed (463) 463 Prototype IDs (27) 540 Alien Tech Used (0) 0 Bonus (300) 300 TOTAL SCORE: 2243 Bonus ------- Aligned with FarCom 300 Cogmind --------- Core Integrity 0/250 Matter 295/300 Energy 250/250 System Corruption 0% Temperature Cool (0) Movement Walking (190) Ox1 Location -9/Mines Parts ------- > --- POWER (1) -------- Ion Engine > --- PROPULSION (2) --- Aluminum Leg Aluminum Leg > --- UTILITY (2) ------ Large Storage Unit Visual Processing Unit > --- WEAPON (2) ------- Chainsword > --- INVENTORY (15) --- Light Ion Engine Light Ion Engine Aluminum Leg Experimental Sensor Array Cloak of Protection System Restoration Module Beamcaster Peak State ------------ > --- POWER ------------ Light Angular Momentum Engine > --- PROPULSION ------- Flight Unit Flight Unit > --- UTILITY ---------- Sensor Array Cloak of Protection > --- WEAPON ----------- Small Laser Light Assault Rifle > --- INVENTORY -------- Ion Engine High-capacity Storage Unit Visual Processing Unit Rocket Launcher [Rating: 18] Favorites ----------- Power Ion Engine Engine Ion Engine Propulsion Wheel Leg Aluminum Leg Wheel Wheel Flight Unit Flight Unit Utility Small Storage Unit Device Sensor Array Storage Small Storage Unit Processor Visual Processing Unit Weapon Small Laser Energy Gun Small Laser Ballistic Gun Light Assault Rifle Launcher Rocket Launcher Special Weapon Mining Laser Slashing Weapon Chainsword Build | -11 -10 -10 -10 -9 ------- Run | Scr Mat Min Exi Min Slots Evolved . | . . . . . Power . | . . . . . Propulsion . | . . . . . Utility . | . . . . . Weapon . | . . . . . Parts Attached 40 | 10 9 2 2 17 Power 5 | 2 . 1 . 2 Engine 5 | 2 . 1 . 2 Core . | . . . . . Reactor . | . . . . . Propulsion 12 | 3 3 . . 6 Treads . | . . . . . Leg 3 | . . . . 3 Wheel 7 | 3 3 . . 1 Hover . | . . . . . Flight 2 | . . . . 2 Utility 12 | 2 3 . 2 5 Device 4 | 1 1 . . 2 Storage 7 | 1 2 . 2 2 Processor 1 | . . . . 1 Hackware . | . . . . . Protection . | . . . . . Artifact . | . . . . . Weapon 11 | 3 3 1 . 4 Energy Gun 2 | 1 . 1 . . Energy Cannon . | . . . . . Ballistic Gun 5 | 2 1 . . 2 Ballistic Cannon . | . . . . . Launcher 1 | . . . . 1 Special Weapon 2 | . 2 . . . Impact Weapon . | . . . . . Slashing Weapon 1 | . . . . 1 Piercing Weapon . | . . . . . Special Melee Weapon . | . . . . . Unidentified Prototypes . | . . . . . Parts Lost 7 | . 1 . . 6 Power . | . . . . . Propulsion 3 | . . . . 3 Utility 2 | . 1 . . 1 Weapon 2 | . . . . 2 Highest Loss Streak 2 | . 1 . . 2 To Critical Strikes . | . . . . . Average Slot Usage (%) 98 | . 99 100 100 95 Engine 14 | . 14 14 14 14 Leg 4 | . . . . 17 Wheel 20 | . 28 28 28 2 Flight 1 | . . . . 7 Device 12 | . 13 14 14 10 Storage 11 | . 14 14 14 4 Processor 3 | . . . . 11 Energy Gun 10 | . 14 14 14 1 Ballistic Gun 3 | . 4 . . 5 Launcher 2 | . . . . 8 Special Weapon 8 | . 9 14 14 . Slashing Weapon 2 | . . . . 10 Naked Turns . | . . . . . Heaviest Build 32 | 13 13 17 32 32 Greatest Support 26 | 26 26 26 26 20 Greatest Overweight (x) 10 | . . . 1 10 Average Overweight (x) . | . . . . . Largest Inventory Capacity 20 | 8 20 8 15 20 Average Capacity 8 | 7 8 8 9 8 Most Carried 9 | 8 8 8 9 8 Average Carried 6 | 5 7 7 8 5 Final Capacity 15 | 8 8 8 15 15 Final Carried 8 | 6 8 8 8 7 Class Distribution -------------------- 92% | Mutant 3% | Scavenger-Scout Dominant Class ---------------- Mutant | -10/Materials Mutant | -10/Mines Mutant | -10/Exiles Mutant | -9/Mines Resources | -11 -10 -10 -10 -9 ----------- Run | Scr Mat Min Exi Min Matter Collected 619 | 214 210 20 . 175 Remotely . | . . . . . Salvage Created 496 | 82 132 48 . 234 Parts 52 | 12 16 2 . 22 Haulers Intercepted . | . . . . . Recyclers Shooed . | . . . . . Parts Field Recycled . | . . . . . Retrieved Matter . | . . . . . Parts Self-Destructed . | . . . . . Prevented . | . . . . . Kills | -11 -10 -10 -10 -9 ------- Run | Scr Mat Min Exi Min Combat Hostiles Destroyed 22 | . 9 3 . 10 Melee 4 | . . . . 4 Guns 14 | . 7 1 . 6 Cannons 4 | . 2 2 . . Classes Destroyed 5 | 1 3 1 . . Builder 1 | . 1 . . . Tunneler 4 | 4 . . . . Watcher 1 | . 1 . . . Swarmer 15 | . 9 . . 6 Grunt 7 | . . 3 . 4 Best Kill Streak 4 | 2 4 3 . 3 Combat Bots Only 4 | . 4 3 . 3 Max Kills in Single Turn 1 | 1 1 1 . 1 Gunslinging . | . . . . . Exploded . | . . . . . Melee 1 | . . . . 1 Uniques/NPCs Destroyed . | . . . . . Combat | -11 -10 -10 -10 -9 -------- Run | Scr Mat Min Exi Min Damage Taken 954 | . 216 98 . 640 Core 255 | . 66 8 . 181 Absorbed by Shields . | . . . . . Core Remaining (%) 100 | 100 . . . . Volleys Fired 86 | 16 55 6 . 9 Largest 2 | 2 2 2 . 2 Hottest 140 | 60 140 140 . 140 Shots Fired 157 | 32 95 12 1 17 Gun 124 | 32 69 6 1 16 Cannon . | . . . . . Launcher . | . . . . . Special 33 | . 26 6 . 1 Kinetic 46 | 18 21 . . 7 Thermal 111 | 14 74 12 1 10 Explosive . | . . . . . Electromagnetic . | . . . . . Robot Hit Streak 16 | 11 10 14 . 16 Robot Miss Streak 3 | 1 3 1 . . Penetration Max . | . . . . . Secondary Targets 1 | . . . . 1 Max Gunslinging Chain 1 | . . . . 1 Shots Hit Robots 100 | 23 44 10 . 23 Core Hits 35 | 6 14 5 . 10 Critical Kills . | . . . . . Critical Parts Destroyed . | . . . . . Critical Strikes . | . . . . . Melee Attacks 9 | . . . . 9 Impact . | . . . . . Slashing 9 | . . . . 9 Piercing . | . . . . . Sneak Attacks . | . . . . . Combat Hostiles . | . . . . . Follow-up Attacks . | . . . . . Damage Inflicted 1354 | 195 544 161 . 454 Guns 780 | 195 376 65 . 144 Cannons . | . . . . . Explosions . | . . . . . Melee 286 | . . . . 286 Ramming . | . . . . . Kinetic 229 | 81 105 . . 43 Thermal 839 | 114 439 161 . 125 Explosive . | . . . . . Electromagnetic . | . . . . . Impact . | . . . . . Slashing 286 | . . . . 286 Piercing . | . . . . . Highest Corruption 1 | . 1 1 1 1 Average Corruption 1 | . 1 1 1 1 Corruption Purged 1 | . . . . 1 Corruption Blocked . | . . . . . Effects 11 | . 3 2 6 . Message Errors 2 | . 1 1 . . Matter Fused 2 | . . . 2 . Heat Flow Errors 1 | . 1 . . . Energy Discharges 2 | . . . 2 . Data Loss (minor) 2 | . . 1 1 . Data Loss (major) 1 | . 1 . . . Misfires 1 | . . . 1 . Overload Shots . | . . . . . Overflow Damage 38 | . 9 . . 29 Projectiles 13 | . 9 . . 4 Explosions . | . . . . . Melee 25 | . . . . 25 Knockbacks . | . . . . . Impact . | . . . . . Kinetic . | . . . . . Secondary . | . . . . . Self-Inflicted Damage . | . . . . . Shots . | . . . . . Rammed . | . . . . . Targets Rammed . | . . . . . Kicked . | . . . . . Crushed . | . . . . . Highest Temperature 382 | 40 382 354 4 72 Average Temperature 75 | 16 66 175 3 39 Received Heat Transfer 255 | . . 72 . 183 Effects 3 | . 3 . . . Shutdowns 1 | . 1 . . . Short Circuit 1 | . 1 . . . Damage (minor) 1 | . 1 . . . Siege Activations . | . . . . . Robots Corrupted . | . . . . . Combat Hostiles . | . . . . . Parts Fried . | . . . . . Impact Corruptions . | . . . . . Robots Melted . | . . . . . Combat Hostiles . | . . . . . Parts Melted 1 | . 1 . . . Heat Transferred 1875 | 275 975 350 . 275 Parts Sabotaged . | . . . . . Parts Stolen . | . . . . . Parts Stripped . | . . . . . Power Chain Reactions . | . . . . . Missiles Intercepted . | . . . . . Alert | -11 -10 -10 -10 -9 ------- Run | Scr Mat Min Exi Min Peak Influence 299 | 15 299 169 . 170 Initial 18 | . . 18 . . Average 60 | 3 93 68 . 69 Maximum Alert Level 1 | . 1 . . . Low Security (%) 97 | 100 92 100 . 100 Level 1 2 | . 7 . . . Level 2 . | . . . . . Level 3 . | . . . . . Level 4 . | . . . . . Level 5 . | . . . . . High Security . | . . . . . Max Security . | . . . . . Squads Dispatched 2 | . 1 . . 1 Investigation 2 | . 1 . . 1 Extermination . | . . . . . Reinforcement . | . . . . . Assault . | . . . . . Garrison . | . . . . . Intercept . | . . . . . Searches Triggered . | . . . . . Construction Impeded . | . . . . . Haulers Reinforced . | . . . . . Active Scanning Responses . | . . . . . Cargo Convoy Interrupts . | . . . . . Stealth | -11 -10 -10 -10 -9 --------- Run | Scr Mat Min Exi Min Distress Signals 2 | . 2 . . . Communications Jammed . | . . . . . Distress Signals . | . . . . . Times Spotted 35 | . 17 6 . 12 Peak Tracking Total 7 | . 7 4 . 3 Tactical Retreats 4 | . 2 2 . . Traps | -11 -10 -10 -10 -9 ------- Run | Scr Mat Min Exi Min Traps Triggered 2 | . 2 . . . Indirectly . | . . . . . Trap Hack Attempts . | . . . . . Triggered . | . . . . . Disarmed 5 | . 5 . . . Reprogrammed . | . . . . . Reused . | . . . . . Traps Extracted . | . . . . . Installed . | . . . . . Triggered . | . . . . . Machines | -11 -10 -10 -10 -9 ---------- Run | Scr Mat Min Exi Min Machines Disabled . | . . . . . Max in Single Turn . | . . . . . Machines Sabotaged . | . . . . . Garrisons Compromised . | . . . . . Overloaded Fab Kills . | . . . . . Hacking | -11 -10 -10 -10 -9 --------- Run | Scr Mat Min Exi Min Machines Accessed 10 | . 6 1 2 1 Terminals 7 | . 6 1 . . Fabricators . | . . . . . Repair Stations . | . . . . . Recycling Units . | . . . . . Scanalyzers . | . . . . . Garrison Access . | . . . . . Total Hacks 40 | . 13 2 24 1 Successful 38 | . 11 2 24 1 Failed 2 | . 2 . . . Catastrophic 1 | . 1 . . . Database Lockouts . | . . . . . Manual 1 | . . . 1 . Terminals 15 | . 13 2 . . Fabricators . | . . . . . Repair Stations . | . . . . . Recycling Units . | . . . . . Scanalyzers . | . . . . . Garrison Access . | . . . . . Terminal Hacks 38 | . 11 2 24 1 Record 23 | . . . 23 . Robot Analysis 1 | . 1 . . . Prototype ID Bank 2 | . 2 . . . Open Door 1 | . . . . 1 Level Access Points 1 | . 1 . . . Locate Traps 1 | . 1 . . . Disarm Traps 1 | . 1 . . . Dispatch Records 2 | . 1 1 . . Registered Components 1 | . 1 . . . Zone Layout 4 | . 3 1 . . EX-Prototype ID Bank 1 | . . . 1 . Fabricator Hacks . | . . . . . Repair Station Hacks . | . . . . . Recycling Unit Hacks . | . . . . . Scanalyzer . | . . . . . Garrison Access Hacks . | . . . . . Unauthorized Hacks . | . . . . . Terminals . | . . . . . Fabricators . | . . . . . Repair Stations . | . . . . . Recycling Units . | . . . . . Scanalyzers . | . . . . . Garrison Access . | . . . . . Data Cores Recovered . | . . . . . Used . | . . . . . Hacking Detections 3 | . 2 1 . . Full Trace Events . | . . . . . Feedback Events . | . . . . . Feedback Blocked . | . . . . . Robot Schematics Acquired . | . . . . . Robots Built . | . . . . . Authchips . | . . . . . Time . | . . . . . Total Robot Build Rating . | . . . . . Part Schematics Acquired . | . . . . . Parts Built . | . . . . . Authchips . | . . . . . Time . | . . . . . Total Part Build Rating . | . . . . . Parts Repaired . | . . . . . Time . | . . . . . Parts Recycled . | . . . . . Recycled Matter . | . . . . . Retrieved Matter . | . . . . . Retrieved Components . | . . . . . Parts Scanalyzed . | . . . . . Part Schematics Acquired . | . . . . . Parts Damaged . | . . . . . Bothacking | -11 -10 -10 -10 -9 ------------ Run | Scr Mat Min Exi Min Used RIF Installer . | . . . . . Robots Hacked . | . . . . . Non-combat . | . . . . . Combat . | . . . . . Robot Hacks Applied . | . . . . . Relay Couplers Released . | . . . . . Fabnet Peak Effective % . | . . . . . Robots Rewired . | . . . . . Allies Hacked . | . . . . . Hacks Repelled . | . . . . . Allies | -11 -10 -10 -10 -9 -------- Run | Scr Mat Min Exi Min Total Allies . | . . . . . Largest Group . | . . . . . Highest-Rated Group . | . . . . . Highest-Rated Ally . | . . . . . Total Orders . | . . . . . Ally Attacks . | . . . . . Total Damage . | . . . . . Kills . | . . . . . Allies Corrupted . | . . . . . Allies Melted . | . . . . . Intel | -11 -10 -10 -10 -9 ------- Run | Scr Mat Min Exi Min Robot Analysis Total 1 | . 1 . . . Derelict Logs Recovered 3 | . . 2 . 1 Drone Launches . | . . . . . Drone Recoveries . | . . . . . Exploration | -11 -10 -10 -10 -9 ------------- Run | Scr Mat Min Exi Min Turns Passed 3645 | 814 1093 354 609 775 Spaces Moved 2844 | 449 919 352 667 457 Core 12 | 3 . . . 9 Treads . | . . . . . Legs 250 | . . . . 250 Wheels 2388 | 446 919 352 667 4 Hover . | . . . . . Flight 194 | . . . . 194 Fastest Speed 37 | 50 80 90 90 37 Average Speed 90 | 84 87 90 90 103 Slowest Speed 600 | 100 100 90 105 600 Overloaded Moves . | . . . . . Propulsion Burnouts . | . . . . . Robots Hopped 2 | . . . . 2 Cave-ins Triggered . | . . . . . Exploration Rate (%) 62 | 25 88 69 93 39 Regions Visited 4 Branch Regions 3 Pre-discovered Areas 2 | . . 1 1 . Known Exits Taken . | . . . . . Unknown Exits Taken 4 | 1 1 1 1 . Scrap Searched 1 | . . 1 . . Spaces Dug 18 | . 18 . . . Terrain Destroyed 20 | . 18 2 . . Melee . | . . . . . Projectile 20 | . 18 2 . . AOE . | . . . . . Terrain Rammed . | . . . . . Walls Destroyed . | . . . . . Machines Disabled . | . . . . . Actions | -11 -10 -10 -10 -9 --------- Run | Scr Mat Min Exi Min Total 3688 | 852 1070 367 672 727 Wait 659 | 368 71 3 . 217 Move 2836 | 448 918 351 666 453 Hop 2 | . . . . 2 Pick Up 27 | 8 8 2 1 8 Fast Attach 16 | 7 1 . . 8 Attach 6 | . 1 . . 5 Detach . | . . . . . Swap 18 | 3 7 2 2 4 Drop 29 | 2 9 3 3 12 Fire 86 | 16 55 6 . 9 Melee 9 | . . . . 9 Ram . | . . . . . Kick . | . . . . . Crush . | . . . . . Escape Stasis . | . . . . . Rewire . | . . . . . Trap . | . . . . . Miscellaneous . | . . . . . Route ------- -11/Scrapyard -10/Materials (discovered 5 exits: *Mat x3 / *Min x2) -10/Mines (discovered 2 exits: *Mat / *Exi) -10/Exiles -9/Mines (discovered 1 exit: [*Mat]) History --------- Turn | Location | Event 13 | -11/Scrapyard | Discovered new exit (range 16) 815 | -11/Scrapyard | Entered Materials 816 | -10/Materials | Build established: Mutant 890 | -10/Materials | Discovered new exit (range 16) 1038 | -10/Materials | Discovered new exit (range 14) 1105 | -10/Materials | Discovered new exit (range 16) 1446 | -10/Materials | Discovered new exit (range 13) 1709 | -10/Materials | Identified exit to Materials 1908 | -10/Materials | Entered Mines 1963 | -10/Mines | Met a Derelict bent on vengeance 1985 | -10/Mines | Received a Rocket Launcher from a helpful Derelict 1992 | -10/Mines | Learned location of Zion (-7) 1998 | -10/Mines | Discovered exit to Materials (range 7) 2130 | -10/Mines | Learned 2 Materials zone layouts 2244 | -10/Mines | Discovered new exit (range 7) 2258 | -10/Mines | Deemed a non-threat by the Exiles lab entrance 2262 | -10/Mines | Entered Exiles 2284 | -10/Exiles | Met 8R-AWN 2299 | -10/Exiles | Met EX-HEX 2326 | -10/Exiles | Met EX-BIN 2336 | -10/Exiles | Aligned with FarCom system 2337 | -10/Exiles | Given EX-Vault access code 2383 | -10/Exiles | Opened EX-Vault 2390 | -10/Exiles | Found Cloak of Protection 2411 | -10/Exiles | Warned to stay clear of 0b10 Research branches 2444 | -10/Exiles | Met EX-DEC 2493 | -10/Exiles | Discovered new exit (range 14) 2664 | -10/Exiles | Visited The Gauntlet 2871 | -10/Exiles | Left Exiles lab with Cloak of Protection 2871 | -10/Exiles | Entered Mines 2942 | -9/Mines | Learned Materials garrison access intel 3027 | -9/Mines | Found a damaged Exp. Sensor Array with a note attached 3028 | -9/Mines | Found Prototype Device 3062 | -9/Mines | Discovered new exit (range 6) 3074 | -9/Mines | Met a Derelict shopkeep closing up shop 3133 | -9/Mines | Core integrity fell below 50% 3613 | -9/Mines | Assembled infested the area 3640 | -9/Mines | Core integrity fell below 20% 3646 | -9/Mines | Destroyed by D-53 Grenadier with Mini Grenade Launcher Last Messages --------------- 03184_ System Restoration Module purges 1% system corruption (0%). 03184_ Acquired 63 matter. 03187_ Acquired Beamcaster. 03230_ Acquired 3 matter. 03325_ G-34 Mercenary destroyed. 03335_ Dropped Lgt. Assault Rifle. 03365_ Acquired 10 matter. 03469_ Dropped System Restoration Module. 03470_ Acquired Lrg. Storage Unit. 03473_ Acquired System Restoration Module. 03480_ Acquired Lgt. Ion Engine. 03613_ ALERT: Infestation in the mines, dispatching Demolisher response squad. 03639_ C-30 ARC bursts open, deploying its payload. 03639_ D-53 Grenadier unfolds itself. 03639_ T-07 Excavator destroyed. 03641_ U-05 Engineer lays Concrete. 03644_ K-01 Serf destroyed. 03644_ Rocket Launcher destroyed. 03645_ U-05 Engineer lays Concrete. Map ----- +----------------------------------------------------+ | ????????#[ * * #???????????????????????????????? | | ????????# = % [ #???????????????????????????????? | | ????????# = % #???????????????????????????????? | | ????????#### #####???????????????????????????????? | | ???????????# #?????????????###???????????????????? | | ?????????### #????????????## ##??????????????????? | | ?????????# #????????????# ###????????????????? | | ?????????# ###????????????# ######???????????? | | ?????????# ###???????????## ## ##??????????? | | ?????????# #?????????### #??????????? | | ########## #????????## #??????????? | | #???????## ## """ ##??????????? | | #??????## ### """ ##???????????? | | ######### ##??????# ##?# """ ##????????????? | | #??????## #???????# ##??# #?????????????? | | #?????## #???????## ##??## ############??? | | ?????## ##???????# ##??## ## #??? | | ?????# ###?????# ##### #### #??? | | ?????# ##????# ## ##??# #??? | | ?????# #????#### ## #???# #??? | | ?????## #??######u # ##### #??? | | ??????#### ##?## #"!### #??? | | ?????????## #### #" !#X #??? | | ??????????## ### * ##"! ! [ #??? | | ???????????# ### %###" = = #??? | | ???????????# ## @ !#?#"! !# !%%* #??? | | ???????????#= #?#"!### = #??? | | ???????????#%### r ##?##### #??? | | ???????????# #?### d # ######## [ %g #??? | | ?????????? #???## ##### r[ %! #######b#####??? | | ?????????#####????#d"#???# ##### #?????# #??????? | | ??????????????????#" #??# #???# ####### #??????? | | ??????????????????# ? #???# #??????? | | ??????????????????# ##???######### #??????? | | ??????????????????##########????????????# ###????? | | ????????????????????????????????????????# ###### | | ????????????????????????????????????????# | | ???????????????????????????????????????## < | | ????????????????????????????????????#### #### | | ???????????????????????????????????## ##???? | | ???????????????????????????????????# ##?????? | | ???????????????????????????????????# ##??????? | | ???????????????????????????????????## #???????? | | ????????????????????????????????????## ##???????? | | ?????????????????????????????????????####????????? | | ?????????????????????????????????????????????????? | | ?????????????????????????????????????????????????? | | ?????????????????????????????????????????????????? | | ?????????????????????????????????????????????????? | | ?????????????????????????????????????????????????? | +----------------------------------------------------+ Best States ------------- Heat Dissipation 25 Energy Generation 18 Energy Capacity 250 Matter Stores 300 Matter Capacity 300 Sight Range 18 Robot Scan Range 14 Terrain Scan Density 10 Cloak Strength 5 Resistance: KI 20 Resistance: TH 20 Resistance: EX 20 Resistance: EM 20 Resistance: I 20 Resistance: S 20 Resistance: P 20 Evasion (%) 62 Offensive Hacking 10 Item Schematics ----------------- None Robot Schematics ------------------ None Fabricated ------------ Nothing Alien Tech Used ----------------- None Achievements -------------- None Challenges ------------ None Game ------ Seed InsulatedSlugFilter Manual? 0 Play Time 00:47:24 Cumulative 43.2 hours Start 2022.05.21 @ 23:02:05 End 2022.05.21 @ 23:49:29 Sessions 1 Manual Loads 0 Difficulty Adventurer Special Mode None Game No. 21 Rogue 0 Adventurer 21 Explorer 0 Win Type - Total 0 Types 0/0/0/0/0/0/0/0/0 Lore% 20 Gallery% 25 Achievement% 21 Wizard Run 0 Options --------- ASCII 0 Keyboard 0 Movement Numpad Keybinds 0 Fullscreen 1 Font 18/SmallcapsGlow Map View 76x50 Tactical HUD 1 Map Filters NONE Filters NONE Steam 1 RUN: ea523fcf-4a15-4d01-96ad-1417ffa7953f